bitfinex-derivatives/quotes_SOLF0:USTF0_20250909
["timestamp","ask_amount","ask_price","bid_price","bid_amount"]
[1757401415963,7.09,218.79,218.75,3.62848261]
[1757401416258,7.09,218.79,218.76,3.62848261]
[1757401416459,7.09,218.79,218.72,7.47]
[1757401416656,7.09,218.79,218.73,3.62883811]
[1757401416860,7.09,218.79,218.74,11.09883811]
[1757401417061,7.09,218.79,218.75,3.62883811]
[1757401417265,7.09,218.79,218.76,3.62883811]
[1757401417562,7.09,218.79,218.74,7.47]
[1757401417765,7.09,218.83,218.76,7.47]
[1757401418067,7.09,218.83,218.77,3.62819298]
[1757401418360,7.09,218.83,218.76,7.47]
[1757401418560,7.09,218.83,218.77,3.62746113]
[1757401418760,7.09,218.83,218.76,7.47]
[1757401418963,7.09,218.83,218.77,3.62747482]
[1757401419159,7.09,218.83,218.78,3.62704688]
[1757401419356,7.09,218.83,218.72,7.47]
[1757401419563,7.09,218.83,218.74,7.47]
[1757401419760,7.09,218.83,218.75,3.62631052]
[1757401419956,7.09,218.83,218.76,3.62631052]
[1757401420163,7.09,218.83,218.77,3.62631052]
[1757401420364,7.09,218.83,218.74,7.47]
[1757401420565,7.09,218.83,218.75,3.62317633]
[1757401420763,7.09,218.83,218.76,3.62317633]
[1757401420963,7.09,218.83,218.77,3.62317633]
[1757401421164,7.09,218.83,218.74,7.47]
[1757401421363,7.09,218.83,218.75,3.6233632]
[1757401421563,7.09,218.83,218.74,7.47]
[1757401421564,7.09,218.83,218.76,3.6233632]
[1757401421765,7.09,218.83,218.77,3.6233632]
[1757401421964,7.09,218.83,218.74,7.47]
[1757401422156,7.09,218.83,218.75,3.62269368]
[1757401422363,7.09,218.83,218.76,3.62269368]
[1757401422562,7.09,218.83,218.77,3.62269368]
[1757401422762,7.09,218.83,218.74,7.47]
[1757401422963,7.09,218.83,218.75,3.62269517]
[1757401423167,7.09,218.83,218.76,3.62269517]
[1757401423362,7.09,218.83,218.77,3.62269517]
[1757401423569,2.99001689,218.87,218.78,11.18215539]
[1757401423764,7.71,218.86,218.78,7.56]
[1757401423963,7.71,218.86,218.79,3.62357787]
[1757401424164,7.71,218.86,218.78,7.56]
[1757401424570,7.71,218.86,218.72,7.56]
[1757401424770,7.71,218.86,218.74,7.56]
[1757401424970,7.71,218.86,218.75,3.62473208]
[1757401425264,7.71,218.86,218.76,3.62473208]
[1757401425464,7.71,218.86,218.77,3.62473208]
[1757401425665,7.71,218.86,218.74,7.56]
[1757401425872,7.71,218.86,218.75,3.62384282]
[1757401426065,7.71,218.79,218.68,3.80482693]
[1757401426260,7.71,218.79,218.69,3.62606051]
[1757401426468,7.71,218.79,218.71,7.56]
[1757401426669,7.71,218.83,218.73,7.56]
[1757401426871,7.71,218.83,218.74,3.62606051]
[1757401427067,7.71,218.83,218.75,3.62606051]
[1757401427372,7.71,218.83,218.76,3.62606051]
[1757401427671,7.71,218.83,218.77,3.62606051]
[1757401427873,7.71,218.83,218.73,7.56]
[1757401428076,7.71,218.83,218.74,3.62365893]
[1757401428265,7.71,218.83,218.75,3.62365893]
[1757401428471,7.71,218.83,218.76,3.62365893]
[1757401428670,7.71,218.83,218.73,7.56]
[1757401428871,7.71,218.83,218.74,3.62363616]
[1757401429076,7.71,218.83,218.75,3.62363616]
[1757401429378,7.71,218.83,218.76,3.62363616]
[1757401429577,7.71,218.83,218.73,7.56]
[1757401429779,7.71,218.83,218.75,7.56]
[1757401429974,7.71,218.83,218.76,3.62365217]
[1757401430174,7.71,218.83,218.77,3.62365217]
[1757401430374,7.71,218.83,218.75,7.56]
[1757401430673,7.71,218.83,218.76,3.62581259]
[1757401430876,7.71,218.83,218.75,7.56]
[1757401431072,7.71,218.83,218.76,3.62487289]
[1757401431376,7.71,218.83,218.75,7.56]
[1757401431872,7.71,218.83,218.69,3.80482693]
[1757401432073,7.62740252,218.96,218.61,7.32363883]
[1757401432074,7.71,218.86,218.73,2.99001689]
[1757401432279,7.71,218.86,218.75,7.56]
[1757401432577,7.71,218.86,218.77,7.56]
[1757401432774,7.71,218.86,218.78,3.62558955]
[1757401432975,7.71,218.86,218.79,3.62558955]
[1757401433174,10.70001689,218.86,218.77,7.56]
[1757401433477,10.70001689,218.86,218.78,3.62524099]
[1757401433672,10.70001689,218.86,218.77,7.56]
[1757401433874,10.70001689,218.86,218.78,3.62524235]
[1757401434075,10.70001689,218.86,218.77,7.56]
[1757401434275,10.70001689,218.86,218.78,3.62525122]
[1757401434476,10.70001689,218.86,218.77,7.56]
[1757401434677,10.70001689,218.86,218.78,3.62474814]
[1757401434873,10.70001689,218.86,218.77,7.56]
[1757401435073,10.70001689,218.86,218.78,3.62440301]
[1757401435369,10.70001689,218.86,218.77,7.56]
[1757401435574,10.70001689,218.86,218.78,3.62484333]
[1757401435774,10.70001689,218.86,218.77,7.56]
[1757401435971,10.70001689,218.86,218.78,3.62484333]
[1757401436167,10.70001689,218.86,218.77,7.56]
[1757401436378,10.70001689,218.86,218.78,3.62515669]
[1757401436580,10.70001689,218.86,218.77,7.56]
[1757401436778,10.70001689,218.86,218.78,3.62601277]
[1757401437076,10.70001689,218.86,218.77,7.56]
[1757401437278,10.70001689,218.86,218.78,3.62576714]
[1757401437479,10.70001689,218.86,218.77,7.56]
[1757401437679,10.70001689,218.86,218.78,3.62622727]
[1757401437979,10.70001689,218.86,218.77,7.56]
[1757401438179,10.70001689,218.86,218.78,3.62554282]
[1757401438377,10.70001689,218.86,218.77,7.56]
[1757401438677,10.70001689,218.86,218.78,3.62592757]
[1757401438876,10.70001689,218.86,218.77,7.56]
[1757401439074,10.70001689,218.86,218.78,3.62635731]
[1757401439276,10.70001689,218.86,218.77,7.56]
[1757401439478,10.70001689,218.86,218.78,3.62738125]
[1757401439678,10.70001689,218.86,218.77,7.56]
[1757401439875,10.70001689,218.86,218.78,3.62746584]
[1757401440070,10.70001689,218.86,218.77,7.56]
[1757401440275,10.70001689,218.86,218.78,3.62746584]
[1757401440475,10.70001689,218.86,218.77,7.56]
[1757401440770,10.70001689,218.86,218.78,3.62704695]
[1757401440970,10.70001689,218.86,218.77,7.56]
[1757401441181,10.70001689,218.86,218.78,3.62766296]
[1757401441478,10.70001689,218.86,218.77,7.56]
[1757401441679,10.70001689,218.86,218.78,3.62767289]
[1757401441872,10.70001689,218.86,218.72,7.56]
[1757401442077,10.70001689,218.86,218.73,3.63008978]
[1757401442279,10.70001689,218.86,218.75,7.56]
[1757401442580,10.70001689,218.86,218.76,3.63008978]
[1757401442781,7.71,218.82,218.7,7.56]
[1757401443076,7.71,218.79,218.71,3.63222091]
[1757401443276,7.71,218.79,218.72,3.63222091]
[1757401443474,7.71,218.79,218.73,3.63222091]
[1757401443774,7.71,218.79,218.7,7.56]
[1757401443977,7.71,218.79,218.71,3.63152571]
[1757401444176,7.71,218.79,218.72,3.63152571]
[1757401444378,7.71,218.79,218.7,7.56]
[1757401444571,7.71,218.79,218.71,3.63125569]
[1757401444776,7.71,218.79,218.72,3.63125569]
[1757401444982,7.71,218.79,218.7,7.56]
[1757401445280,7.71,218.79,218.71,3.6312567]
[1757401445479,7.71,218.79,218.72,3.6312567]
[1757401445681,7.71,218.79,218.7,7.56]
[1757401445882,7.71,218.79,218.71,3.63166365]
[1757401446077,7.71,218.79,218.72,3.63166365]
[1757401446277,7.71,218.79,218.7,7.56]
[1757401446476,7.71,218.79,218.72,7.56]
[1757401446681,7.71,218.79,218.73,3.63304481]
[1757401446875,2.99001689,218.82,218.74,11.19304481]
[1757401447081,7.71,218.81,218.75,3.63304481]
[1757401447282,7.71,218.81,218.74,7.56]
[1757401447472,7.71,218.81,218.75,3.6323186]
[1757401447676,7.71,218.81,218.74,7.56]
[1757401447980,7.71,218.81,218.75,3.6325991]
[1757401448181,7.71,218.81,218.74,7.56]
[1757401448482,7.71,218.81,218.75,3.63417102]
[1757401448679,7.71,218.81,218.74,7.56]
[1757401448984,7.71,218.81,218.75,3.63404097]
[1757401449183,7.71,218.81,218.74,7.56]
[1757401449384,7.71,218.81,218.75,3.63515466]
[1757401449584,310.27001689,218.88,218.76,11.19515466]
[1757401449784,122.17,218.87,218.77,3.63515466]
[1757401449985,122.17,218.87,218.78,3.63515466]
[1757401450185,7.71,218.87,218.79,3.63515466]
[1757401450386,7.71,218.87,218.76,7.56]
[1757401450574,7.71,218.87,218.77,3.63846584]
[1757401450781,7.71,218.87,218.78,3.63846584]
[1757401450980,7.71,218.87,218.79,3.63846584]
[1757401451182,7.71,218.87,218.8,3.63846584]
[1757401451381,7.71,218.87,218.76,7.56]
[1757401451584,7.71,218.87,218.77,3.63925193]
[1757401451778,7.71,218.87,218.78,3.63925193]
[1757401451976,7.71,218.87,218.79,3.63925193]
[1757401452179,7.71,218.87,218.8,3.63925193]
[1757401452379,7.71,218.87,218.81,3.64003032]
[1757401452587,7.71,218.87,218.78,7.56]
[1757401452885,7.71,218.87,218.79,3.64002346]
[1757401453079,7.71,218.87,218.8,3.64002346]
[1757401453285,7.71,218.87,218.81,3.64002346]
[1757401453488,7.13,218.9,218.82,3.64002346]
[1757401453677,7.13,218.9,218.78,7.56]
[1757401453881,7.13,218.9,218.79,3.63958694]
[1757401454079,7.13,218.9,218.8,3.63958694]
[1757401454286,7.13,218.9,218.81,3.63958694]
[1757401454586,7.13,218.9,218.82,3.63958694]
[1757401454886,7.13,218.9,218.78,7.56]
[1757401455087,7.13,218.9,218.79,3.63967316]
[1757401455286,7.13,218.9,218.8,3.63967316]
[1757401455586,7.13,218.9,218.81,3.63967316]
[1757401455785,7.13,218.9,218.82,3.63967316]
[1757401455987,7.13,218.9,218.78,7.56]
[1757401456285,7.13,218.9,218.79,3.63465763]
[1757401456480,7.13,218.9,218.8,3.63465763]
[1757401456688,7.13,218.9,218.81,11.35465763]
[1757401456880,121.57,218.9,218.82,3.63465763]
[1757401457088,121.57,218.9,218.81,7.72]
[1757401457281,121.57,218.9,218.82,3.63198895]
[1757401457493,121.57,218.9,218.83,3.63182098]
[1757401457690,7.13,218.9,218.81,7.72]
[1757401457892,7.13,218.94,218.83,7.72]
[1757401458192,7.13,218.94,218.85,7.72]
[1757401458392,7.13,218.94,218.86,3.63143323]
[1757401458704,7.13,218.94,218.87,3.63143323]
[1757401458889,7.13,218.94,218.88,3.63143323]
[1757401459190,7.13,218.95,218.89,3.63143323]
[1757401459393,7.13,218.95,218.85,7.72]
[1757401459592,7.13,218.95,218.86,3.62571781]
[1757401459793,7.13,218.95,218.87,11.34571781]
[1757401459992,7.13,218.95,218.88,3.62571781]
[1757401460294,7.13,218.95,218.89,11.34548814]
[1757401460494,314.45,218.98,218.91,7.72]
[1757401461796,428.87,218.98,218.91,7.72]
[1757401464199,314.45,218.98,218.91,7.72]
[1757401464398,114.4,218.97,218.91,7.72]
[1757401465300,314.45,218.98,218.91,7.72]
[1757401465301,428.85,218.98,218.91,7.72]
[1757401466005,7.13,219.03,218.91,7.72]
[1757401466202,7.13,219.03,218.93,7.72]
[1757401474017,2.99001689,219.01,218.84,2.99001689]
[1757401474216,2.99001689,219.05,218.85,11.31641077]
[1757401474217,7.13,218.97,218.85,11.31641077]
[1757401474514,7.13,218.97,218.85,7.72]
[1757401474911,6.78,219.01,218.88,7.72]
[1757401475112,7.13,219.0,218.88,7.72]
[1757401475415,7.13,219.0,218.9,2.99001689]
[1757401475615,7.13,219.0,218.91,7.72]
[1757401478317,7.13,219.0,218.95,1.90943785]
[1757401478616,7.13,219.0,218.95,9.62943785]
[1757401479315,7.13,219.02,218.95,1.90943785]
[1757401480715,7.13,219.02,218.91,7.72]
[1757401480913,50.72943785,219.03,218.92,1.90943785]
[1757401480914,1.90943785,218.99,218.92,1.90943785]
[1757401481113,7.13,218.98,218.91,7.72]
[1757401484522,48.82,219.03,218.85,1.90943785]
[1757401484523,7.13,218.94,218.85,1.90943785]
[1757401484722,1.90943785,218.91,218.83,8.91943785]
[1757401485021,7.13,218.92,218.83,8.91943785]
[1757401485223,9.03943785,218.92,218.83,8.91943785]
[1757401485923,7.13,218.92,218.85,1.90943785]
[1757401488423,7.13,218.88,218.78,7.01]
[1757401488626,7.13,218.88,218.8,1.90943785]
[1757401488915,7.13,218.88,218.82,1.90943785]
[1757401489121,26.35,218.92,218.84,1.90943785]
[1757401489324,7.13,218.92,218.86,1.90943785]
[1757401489512,7.13,218.98,218.9,1.90943785]
[1757401489721,7.13,218.98,218.91,7.01]
[1757401489917,7.13,218.98,218.94,1.90943785]
[1757401490812,308.96943785,219.03,218.94,1.90943785]
[1757401491011,7.13,219.02,218.94,1.90943785]
[1757401491615,7.13,219.02,218.93,7.01]
[1757401491822,7.13,219.02,218.94,1.90943785]
[1757401492519,7.13,218.98,218.86,7.01]
[1757401492819,7.13,218.96,218.88,1.90943785]
[1757401493021,7.13,218.94,218.86,7.01]
[1757401493221,7.13,218.94,218.87,3.60876381]
[1757401493523,7.13,218.94,218.87,1.90943785]
[1757401493719,7.13,218.94,218.86,7.01]
[1757401493919,7.13,218.94,218.87,3.6107073]
[1757401494120,1.90943785,218.91,218.82,8.91943785]
[1757401494320,7.13,218.92,218.84,1.90943785]
[1757401494520,7.13,218.92,218.79,3.80482693]
[1757401494521,7.13,218.92,218.86,1.90943785]
[1757401494920,7.13,218.92,218.87,1.90943785]
[1757401495128,7.13,218.92,218.87,8.91943785]
[1757401495424,7.13,218.94,218.87,8.91943785]
[1757401497324,7.13,218.94,218.88,3.61696053]
[1757401497527,7.13,218.94,218.87,8.91943785]
[1757401497729,7.13,218.94,218.89,1.90943785]
[1757401498021,7.13,218.94,218.9,10.62594522]
[1757401498225,7.13,218.98,218.91,1.90943785]
[1757401498623,7.13,218.98,218.93,1.90943785]
[1757401498825,1.90943785,219.01,218.93,1.90943785]
[1757401499025,7.13,219.0,218.93,1.90943785]
[1757401500929,7.13,219.0,218.9,7.01]
[1757401501129,7.13,219.0,218.94,1.90943785]
[1757401501825,7.13,219.0,218.93,7.01]
[1757401502025,7.13,219.0,218.94,5.52941638]
[1757401502231,7.13,219.0,218.95,3.61997853]
[1757401502426,421.36,219.03,218.96,3.61997853]
[1757401502632,7.13,219.02,218.94,1.90943785]
[1757401502829,7.13,219.02,218.95,3.62166011]
[1757401503031,7.13,219.02,218.96,3.62166011]
[1757401503331,7.13,219.02,218.94,1.90943785]
[1757401503534,7.13,219.02,218.95,3.62241145]
[1757401503726,7.13,219.02,218.94,1.90943785]
[1757401503928,7.13,219.02,218.95,3.62254639]
[1757401504135,7.13,219.02,218.96,3.62254639]
[1757401504330,7.13,219.02,218.94,1.90943785]
[1757401504634,7.13,219.02,218.95,3.62260385]
[1757401504831,7.13,219.02,218.96,3.62260385]
[1757401505031,7.13,219.02,218.94,1.90943785]
[1757401505232,7.13,219.02,218.95,3.62128602]
[1757401505532,7.13,219.02,218.96,10.63128602]
[1757401505732,7.13,219.02,218.98,7.01]
[1757401506331,7.13,219.02,218.99,3.61903]
[1757401506526,9.03943785,219.06,218.97,8.91943785]
[1757401506724,114.28,219.05,218.98,3.61868896]
[1757401506924,114.28,219.05,218.99,3.61868896]
[1757401507123,7.13,219.04,219.0,3.61868896]
[1757401507325,7.13,219.04,218.97,8.91943785]
[1757401507524,7.13,219.04,218.98,3.61833525]
[1757401507728,7.13,219.09,219.01,1.90943785]
[1757401507925,121.41,219.09,219.01,1.90943785]
[1757401508629,121.41,219.09,219.02,3.61526265]
[1757401508930,7.13,219.09,219.01,1.90943785]
[1757401509135,114.26,219.12,219.04,7.01]
[1757401509325,114.26,219.12,218.98,7.01]
[1757401509326,7.13,219.11,218.98,7.01]
[1757401509531,7.13,219.08,219.0,1.90943785]
[1757401509731,7.13,219.08,219.01,3.61284731]
[1757401509937,7.13,219.08,219.0,1.90943785]
[1757401510131,7.13,219.08,219.01,3.61310588]
[1757401510437,7.13,219.08,219.0,1.90943785]
[1757401510736,7.13,219.08,219.01,3.61114725]
[1757401510935,7.13,219.08,219.0,1.90943785]
[1757401511138,7.13,219.08,219.01,3.61091038]
[1757401511334,7.13,219.08,219.0,1.90943785]
[1757401511636,7.13,219.08,219.01,3.60956639]
[1757401511830,7.13,219.08,218.98,7.01]
[1757401511831,7.13,219.11,219.04,1.90943785]
[1757401512031,114.26,219.12,219.09,1.90943785]
[1757401512331,114.24,219.12,219.09,1.90943785]
[1757401513040,7.13,219.11,219.06,1.90943785]
[1757401513337,114.24,219.12,219.06,1.90943785]
[1757401513531,7.17,219.11,219.06,1.90943785]
[1757401513737,7.17,219.11,219.08,1.90943785]
[1757401514140,114.24,219.12,219.08,1.90943785]
[1757401514439,7.17,219.11,219.08,1.90943785]
[1757401514631,114.24,219.12,219.08,1.90943785]
[1757401515234,7.17,219.11,219.08,1.90943785]
[1757401515429,114.24,219.12,219.08,1.90943785]
[1757401515740,7.17,219.11,219.08,1.90943785]
[1757401516039,114.24,219.12,219.08,1.90943785]
[1757401516731,7.17,219.11,218.97,7.17]
[1757401516935,7.17,219.11,218.94,3.80482693]
[1757401516936,114.24,219.12,219.06,1.90943785]
[1757401517133,114.22,219.11,219.08,1.90943785]
[1757401517440,7.17,219.1,219.08,1.90943785]
[1757401517939,114.22,219.11,219.08,1.90943785]
[1757401518437,7.17,219.1,219.08,1.90943785]
[1757401518635,114.22,219.11,219.08,1.90943785]
[1757401518832,7.17,219.1,219.08,1.90943785]
[1757401519038,7.17,219.1,219.06,1.90943785]
[1757401519240,114.22,219.11,219.06,1.90943785]
[1757401519837,114.22,219.11,219.03,7.17]
[1757401520034,7.17,219.1,219.04,1.90943785]
[1757401520234,7.17,219.1,219.03,1.90943785]
[1757401521640,7.17,219.15,219.05,1.90943785]
[1757401521943,7.17,219.12,219.05,1.90943785]
[1757401523837,7.17,219.12,219.03,7.17]
[1757401524040,7.17,219.12,219.05,1.90943785]
[1757401524342,1.90943785,219.13,219.03,9.07943785]
[1757401524543,7.17,219.12,219.03,9.07943785]
[1757401524736,9.07943785,219.13,219.03,1.90943785]
[1757401525036,7.17,219.1,219.01,1.90943785]
[1757401525236,307.08,219.16,219.01,1.90943785]
[1757401525237,7.17,219.08,219.01,1.90943785]
[1757401525453,121.37,219.08,219.01,1.90943785]
[1757401528041,121.37,219.08,219.0,7.17]
[1757401528238,1.90943785,219.04,218.95,1.90943785]
[1757401528437,7.17,219.03,218.95,1.90943785]
[1757401528738,121.37,219.03,218.95,1.90943785]
[1757401530845,123.27943785,219.03,218.95,1.90943785]
[1757401531245,123.27943785,219.03,218.94,1.90943785]
[1757401531646,121.37,219.03,218.94,1.90943785]
[1757401532050,7.17,219.01,218.92,1.90943785]
[1757401532843,9.07943785,219.01,218.92,1.90943785]
[1757401533044,7.17,219.01,218.94,1.90943785]
[1757401535855,7.17,219.01,218.96,1.90943785]
[1757401536052,31.72,219.04,218.98,1.90943785]
[1757401536253,7.17,219.05,218.98,1.90943785]
[1757401536254,38.89,219.05,218.98,1.90943785]
[1757401536654,7.17,219.05,218.98,1.90943785]
[1757401536851,34.6,219.07,219.0,9.07943785]
[1757401537054,7.17,219.06,219.0,9.07943785]
[1757401537255,7.17,219.06,219.02,1.90943785]
[1757401537853,7.17,219.06,219.02,9.07943785]
[1757401538154,1.90943785,219.11,219.04,1.90943785]
[1757401538155,7.17,219.1,219.04,1.90943785]
[1757401538356,7.17,219.1,219.02,7.17]
[1757401538959,7.17,219.1,219.03,2.98155148]
[1757401539661,307.08,219.16,219.03,2.98155148]
[1757401539662,7.17,219.13,219.03,2.98155148]
[1757401539860,7.17,219.13,219.02,7.17]
[1757401540062,7.17,219.13,219.03,3.60255682]
[1757401540259,7.17,219.13,219.02,10.15155148]
[1757401540457,7.17,219.13,219.03,3.60337685]
[1757401540657,7.17,219.13,219.02,10.15155148]
[1757401540862,7.17,219.13,219.03,3.60337685]
[1757401541063,7.17,219.13,219.02,7.17]
[1757401541254,7.17,219.13,219.03,3.60364178]
[1757401541458,7.17,219.13,219.02,7.17]
[1757401541660,7.17,219.13,219.03,3.60402979]
[1757401541861,7.17,219.13,219.02,7.17]
[1757401542067,7.17,219.13,219.03,3.60402676]
[1757401542272,7.17,219.13,219.04,3.60471059]
[1757401542569,7.17,219.13,219.02,7.17]
[1757401542766,7.17,219.13,219.03,3.60480512]
[1757401543074,10.15155148,219.13,218.97,7.17]
[1757401543275,7.6,219.09,218.98,3.60669624]
[1757401543469,10.58155148,219.07,218.99,3.60669624]
[1757401543675,7.6,219.05,218.93,2.98155148]
[1757401543872,7.6,219.05,218.95,7.06]
[1757401544173,7.6,219.05,218.96,6.59013529]
[1757401544373,7.6,219.05,218.97,3.60858381]
[1757401544572,7.6,219.05,218.98,3.60858381]
[1757401544771,7.6,219.05,218.99,3.60858381]
[1757401544970,7.6,219.05,218.96,2.98155148]
[1757401545174,7.6,219.05,218.97,3.60864911]
[1757401545376,7.6,219.05,218.98,3.60864911]
[1757401545674,7.6,219.05,218.99,3.60864911]
[1757401545872,7.6,219.05,218.96,2.98155148]
[1757401546072,7.6,219.05,218.97,3.60949113]
[1757401546274,7.6,219.05,218.98,3.60949113]
[1757401546472,7.6,219.05,218.99,3.60949113]
[1757401546675,7.6,219.05,218.95,7.06]
[1757401546870,7.6,219.05,218.96,3.60958405]
[1757401547067,7.6,219.05,218.97,3.60958405]
[1757401547270,7.6,219.05,218.95,7.06]
[1757401547271,7.6,219.05,218.91,3.80482693]
[1757401547476,7.6,219.05,218.79,310.08155148]
[1757401547477,10.58155148,219.05,218.92,3.61083923]
[1757401547770,10.58155148,219.05,218.9,7.06]
[1757401547771,10.58155148,219.05,218.93,3.61083923]
[1757401547976,10.58155148,219.05,218.94,3.61083923]
[1757401548178,10.58155148,219.05,218.9,7.06]
[1757401548379,10.58155148,219.05,218.91,3.61394675]
[1757401548680,10.58155148,219.05,218.92,3.61394675]
[1757401548979,10.58155148,219.05,218.93,3.61394675]
[1757401549181,10.58155148,219.05,218.94,3.61394675]
[1757401549374,10.58155148,219.05,218.9,7.06]
[1757401549672,10.58155148,219.05,218.91,3.61198935]
[1757401549875,2.98155148,219.02,218.92,3.61198935]
[1757401550080,7.6,219.01,218.93,3.61198935]
[1757401550275,7.6,219.01,218.9,7.06]
[1757401550474,7.6,219.01,218.91,3.61197767]
[1757401550669,7.6,219.01,218.92,3.61197767]
[1757401550873,7.6,219.01,218.93,3.61197767]
[1757401551081,7.6,219.01,218.9,7.06]
[1757401551283,7.6,219.01,218.91,3.61211467]
[1757401551576,107.96,219.06,218.86,7.06]
[1757401551577,7.6,218.98,218.86,7.06]
[1757401551874,2.98155148,218.99,218.87,3.61307232]
[1757401551875,7.6,218.96,218.87,3.61307232]
[1757401552081,7.6,218.96,218.82,2.98155148]
[1757401552082,10.58155148,218.96,218.82,2.98155148]
[1757401552270,10.58155148,218.96,218.83,3.6126761]
[1757401552476,7.6,218.92,218.81,7.06]
[1757401552669,7.6,218.92,218.82,3.61431085]
[1757401552982,7.6,218.92,218.81,7.06]
[1757401553376,7.6,218.92,218.83,7.06]
[1757401553579,7.6,218.92,218.85,2.98155148]
[1757401555480,7.6,218.92,218.83,10.04155148]
[1757401555681,7.6,218.92,218.83,7.06]
[1757401555981,7.6,218.92,218.79,7.06]
[1757401556180,7.6,218.92,218.8,3.60636828]
[1757401556378,7.6,218.92,218.79,7.06]
[1757401556684,7.6,218.92,218.8,3.60433377]
[1757401556878,7.6,218.92,218.79,7.06]
[1757401557077,7.6,218.92,218.8,3.60464834]
[1757401557279,7.6,218.92,218.79,7.06]
[1757401557584,7.6,218.92,218.8,3.60277389]
[1757401557787,7.6,218.92,218.79,7.06]
[1757401557987,7.6,218.92,218.8,3.60277188]
[1757401558179,7.6,218.92,218.81,3.60277188]
[1757401558380,7.6,218.92,218.79,7.06]
[1757401558587,7.6,218.92,218.8,3.60050546]
[1757401558780,7.6,218.92,218.79,7.06]
[1757401558979,7.6,218.92,218.8,3.59892053]
[1757401559181,7.6,218.92,218.79,7.06]
[1757401559376,7.6,218.92,218.81,2.98155148]
[1757401559576,51.3,218.92,218.82,7.06]
[1757401559776,51.3,218.92,218.81,2.98155148]
[1757401559983,51.3,218.92,218.79,2.98155148]
[1757401560183,43.7,218.92,218.75,11.1739]
[1757401560389,43.7,218.92,218.77,2.98155148]
[1757401560390,7.6,218.91,218.77,2.98155148]
[1757401560582,7.6,218.91,218.78,3.59928511]
[1757401560778,7.6,218.91,218.75,7.06]
[1757401561092,7.6,218.89,218.78,7.06]
[1757401561481,2.98155148,218.98,218.84,2.98155148]
[1757401561685,7.6,219.0,218.85,7.06]
[1757401561895,7.6,218.97,218.85,7.06]
[1757401562782,7.6,218.97,218.88,7.06]
[1757401563088,7.6,218.97,218.88,10.04155148]
[1757401563583,314.6,219.01,218.94,2.98155148]
[1757401563780,7.6,219.01,218.92,7.06]
[1757401563982,7.6,219.01,218.93,2.98155148]
[1757401564382,7.67259879,219.13,218.92,7.06]
[1757401564587,7.6,219.12,218.92,7.06]
[1757401564786,7.6,219.1,218.92,7.06]
[1757401567282,7.6,219.1,218.86,7.06]
[1757401567486,7.6,219.1,218.87,3.59535154]
[1757401567687,7.6,219.1,218.86,7.06]
[1757401567888,7.6,219.1,218.88,7.06]
[1757401568990,7.6,219.08,218.89,3.59448369]
[1757401569287,7.6,219.08,218.88,7.06]
[1757401569488,7.6,219.08,218.89,3.59623609]
[1757401569690,37.74,219.07,218.9,7.06]
[1757401569890,7.6,219.06,218.9,7.06]
[1757401570687,61.32,219.05,218.9,7.06]
[1757401570884,7.6,219.04,218.92,7.06]
[1757401571286,7.6,219.04,218.85,7.06]
[1757401571491,7.6,219.04,218.87,7.06]
[1757401571694,7.6,219.04,218.89,7.06]